bitfinex/quotes_ETHUSD_20250406
["timestamp","ask_amount","ask_price","bid_price","bid_amount"]
[1743928069387,3.91761,1786.8,1786.7,30.89]
[1743928069889,3.91261,1786.8,1786.7,30.89]
[1743928070583,4.695627,1786.8,1786.7,25.167]
[1743928071192,7.695627,1786.8,1786.7,25.167]
[1743928071502,3.91827,1786.5,1786.4,5.723]
[1743928072166,3.91827,1786.5,1786.4,5.72]
[1743928072793,3.91806,1786.6,1786.4,5.72]
[1743928072970,8.6495,1786.9,1786.4,5.72]
[1743928073169,6.9177,1786.8,1786.5,0.55]
[1743928073366,3.91759,1786.9,1786.5,5.23446]
[1743928073569,3.91721,1787.0,1786.5,5.23434]
[1743928073765,4.73138,1787.1,1786.5,5.23434]
[1743928073766,0.8143,1787.1,1786.5,1.3162]
[1743928073972,3.91781,1786.8,1786.5,1.3162]
[1743928074381,4.73323,1786.2,1786.1,0.05]
[1743928074558,7.73323,1786.2,1786.1,0.05]
[1743928082201,6.91893,1786.2,1786.1,0.05]
[1743928087991,7.67263,1786.2,1786.1,0.05]
[1743928088190,9.94526524,1786.2,1786.1,0.05]
[1743928089196,15.87622064,1786.2,1786.1,0.05]
[1743928090274,15.87622064,1786.2,1786.1,1e-05]
[1743928092603,3.9209,1785.3,1785.2,4.89411157]
[1743928092911,6.9209,1785.3,1785.2,4.89411157]
[1743928093076,6.92112,1785.2,1785.1,1.57e-06]
[1743928095978,7.84129,1785.5,1785.1,1.57e-06]
[1743928096201,3.92063,1785.5,1785.2,0.7741]
[1743928096397,6.92063,1785.5,1785.3,5.822]
[1743928097011,3.92025,1785.6,1785.3,5.822]
[1743928097211,3.92007,1785.7,1785.3,5.822]
[1743928097377,3.92028,1785.6,1785.3,5.822]
[1743928097815,7.84067,1785.6,1785.3,5.822]
[1743928098608,3.92049,1785.5,1785.3,5.822]
[1743928098814,3.92049,1785.5,1785.2,0.7741]
[1743928098981,3.92049,1785.5,1785.3,5.811]
[1743928099893,3.92049,1785.5,1785.2,0.7741]
[1743928100097,6.92069,1785.4,1785.3,5.805]
[1743928100286,3.0,1785.4,1785.3,5.805]
[1743928100822,3.92049,1785.5,1785.3,5.805]
[1743928101689,3.92069,1785.4,1785.1,1.57e-06]
[1743928101917,4.313069,1785.3,1785.1,1.57e-06]
[1743928102093,3.922,1784.8,1784.4,0.005]
[1743928102292,6.92266,1784.5,1784.4,0.005]
[1743928102498,7.72956,1784.5,1784.4,0.005]
[1743928104218,7.72956,1784.5,1784.1,0.05]
[1743928104219,3.92332,1784.2,1784.1,0.05]
[1743928104580,3.0,1784.2,1784.1,0.05]
[1743928105097,6.92332,1784.2,1784.1,0.05]
[1743928105609,8.007969,1784.2,1784.1,0.05]
[1743928107315,3.0,1784.1,1783.3,3.92521]
[1743928107513,3.92379,1784.0,1783.5,3.92477]
[1743928107714,3.92401,1783.9,1783.6,0.392477]
[1743928107919,7.84819,1783.9,1783.6,0.392477]
[1743928108082,3.9242,1783.8,1783.7,5.969]
[1743928108288,3.92401,1783.9,1783.7,5.971]
[1743928108592,3.92394,1784.0,1783.7,5.971]
[1743928108989,3.92394,1784.0,1783.6,3.92464]
[1743928109189,3.92394,1784.0,1783.7,6.359464]
[1743928109808,7.84791,1784.0,1783.7,6.359464]
[1743928110125,3.9242,1783.8,1783.7,5.967]
[1743928110303,7.84818,1783.9,1783.4,5.02443884]
[1743928110488,7.84818,1783.9,1783.5,5.967]
[1743928110689,3.92401,1783.9,1783.5,5.967]
[1743928110897,3.92401,1783.9,1783.8,0.825]
[1743928111506,3.92376,1784.0,1783.8,0.825]
[1743928112220,10.9389644,1784.2,1783.8,0.825]
[1743928112390,5.008009,1784.2,1783.9,5.957]
[1743928112592,3.92354,1784.1,1783.9,5.957]
[1743928113795,3.92355,1784.1,1783.9,5.957]
[1743928114491,3.92356,1784.1,1783.9,5.957]
[1743928114714,6.92315,1784.3,1783.9,5.957]
[1743928114931,10.84646,1784.3,1783.9,5.957]
[1743928115436,3.92335,1784.2,1783.9,5.957]
[1743928116000,7.84688,1784.2,1783.9,5.957]
[1743928116329,7.84684,1784.2,1783.9,5.957]
[1743928116525,3.92362,1784.1,1783.9,5.957]
[1743928117635,3.92335,1784.2,1783.9,5.957]
[1743928118222,7.84686,1784.2,1783.9,5.957]
[1743928118622,3.92355,1784.1,1783.9,5.957]
[1743928119397,3.92355,1784.1,1784.0,5.915]
[1743928121997,3.92398,1783.9,1783.8,6.726]
[1743928124817,4.3391335,1783.9,1783.8,6.726]
[1743928129714,3.92398,1783.9,1783.8,6.726]
[1743928130512,3.92398,1783.9,1783.8,6.673]
[1743928130706,4.708756,1783.9,1783.8,6.673]
[1743928133147,5.13880716,1783.9,1783.8,6.673]
[1743928133964,3.92772,1782.2,1782.1,0.05]
[1743928134118,3.92721,1782.5,1782.1,0.05]
[1743928134322,3.92679,1782.7,1782.2,0.7947]
[1743928134635,3.0,1782.8,1782.2,0.7947]
[1743928134843,3.92695,1782.6,1782.3,6.04]
[1743928135216,7.854,1782.6,1782.3,6.04]
[1743928135441,3.92695,1782.6,1782.3,6.04]
[1743928135646,3.92664,1782.7,1782.4,0.604]
[1743928136148,3.92655,1782.8,1782.4,0.604]
[1743928136348,3.92609,1783.0,1782.6,0.7947]
[1743928136535,3.92609,1783.0,1782.7,6.053]
[1743928136735,3.92609,1783.0,1782.7,0.68477]
[1743928136916,3.92609,1783.0,1782.8,6.054]
[1743928137117,3.0,1783.1,1782.8,6.054]
[1743928137322,3.92531,1783.3,1782.8,9.9803]
[1743928137920,9.8562154,1783.4,1782.8,9.9803]
[1743928138121,3.92526,1783.4,1782.9,5.71877]
[1743928138314,3.92488,1783.5,1783.0,3.92582]
[1743928138551,3.92488,1783.5,1782.9,5.71877]
[1743928138724,3.9251,1783.4,1782.9,5.71877]
[1743928138924,3.9251,1783.4,1782.9,9.64485]
[1743928139134,3.92488,1783.5,1783.0,0.964485]
[1743928139630,3.92488,1783.5,1783.0,4.890445]
[1743928139831,7.84995,1783.5,1783.0,0.964485]
[1743928140228,3.92511,1783.4,1782.9,0.7947]
[1743928140534,3.92544,1783.3,1782.9,0.7947]
[1743928140845,3.92553,1783.2,1783.0,6.033]
[1743928141755,3.92553,1783.2,1782.9,0.7947]
[1743928141959,3.92553,1783.2,1783.0,6.024]
[1743928143525,3.92574,1783.1,1783.0,6.024]
[1743928143857,3.92596,1783.0,1782.8,25.224]
[1743928144055,3.92596,1783.0,1782.9,6.01]
[1743928144460,5.9309554,1783.0,1782.5,9.95306]
[1743928144753,3.92629,1782.9,1782.6,0.7992]
[1743928144922,3.92629,1782.9,1782.7,6.028]
[1743928145535,5.504537,1783.2,1782.8,3.9264]
[1743928145750,8.636537,1783.2,1782.8,3.92631]
[1743928145953,4.710817,1783.2,1782.8,3.92631]
[1743928146525,4.710807,1783.2,1782.8,3.92631]
[1743928147325,4.710807,1783.2,1782.8,7.85262]
[1743928147523,5.9309554,1783.3,1783.0,3.92577]
[1743928147729,11.85994506,1783.1,1783.0,0.7992]
[1743928147962,11.85994506,1783.1,1783.0,6.8132]
[1743928149656,11.85994506,1783.1,1782.8,3.92623]
[1743928149856,13.43849157,1783.1,1782.9,6.005]
[1743928150556,13.43849157,1783.1,1783.0,5.998]
[1743928150757,15.78568506,1783.1,1783.0,5.998]
[1743928151555,11.85994506,1783.1,1783.0,5.998]
[1743928153080,11.85994506,1783.1,1783.0,6.7689]
[1743928153639,6.1522527,1783.1,1783.0,6.7689]
[1743928154569,6.1522527,1783.1,1783.0,0.7709]
[1743928154776,6.1522527,1783.1,1783.0,10.67286]
[1743928155071,6.1522527,1783.1,1783.0,6.7469]
[1743928155276,6.1522527,1783.1,1783.0,12.132766]
[1743928156178,6.1522527,1783.1,1783.0,12.682766]
[1743928158137,3.51557297,1783.1,1783.0,12.682766]
[1743928158779,3.51557297,1783.1,1782.7,29.15544]
[1743928158945,3.51557297,1783.1,1782.8,6.8089]
[1743928159148,3.51557297,1783.1,1783.0,3.92596]
[1743928159358,3.51557297,1783.1,1783.0,10.72096]
[1743928160251,3.51557297,1783.1,1783.0,4.67696]
[1743928160477,3.51557297,1783.1,1783.0,10.71596]
[1743928160640,3.51557297,1783.1,1782.9,3.92605]
[1743928160837,3.51557297,1783.1,1783.0,6.057]
[1743928161037,3.92532,1783.3,1783.0,6.057]
[1743928161247,3.92532,1783.3,1782.9,7.8521]
[1743928161447,3.92532,1783.3,1783.0,9.97796]
[1743928161670,3.92532,1783.3,1783.0,6.052]
[1743928161973,3.92532,1783.3,1783.0,9.97796]
[1743928162276,9.65594815,1783.4,1783.0,9.97796]
[1743928162570,9.65594815,1783.4,1783.0,9.97783]
[1743928162743,9.65594815,1783.4,1783.0,9.9778]
[1743928162939,5.73085815,1783.4,1783.1,3.92571]
[1743928163140,5.73085815,1783.4,1783.1,4.67671]
[1743928163336,5.73085815,1783.4,1783.1,0.751]
[1743928163337,3.92532,1783.3,1783.1,0.751]
[1743928163540,10.62153197,1783.4,1783.1,0.751]
[1743928164152,6.69643197,1783.4,1783.1,4.67672]
[1743928164374,5.73085815,1783.4,1783.2,3.92549]
[1743928164676,5.73085815,1783.4,1783.3,3.9253]
[1743928164879,5.23099072,1783.8,1783.3,3.92516]
[1743928165055,9.15528072,1783.8,1783.4,9.96004]
[1743928165378,0.91552807,1783.7,1783.4,9.96004]
[1743928165577,4.43809072,1783.8,1783.4,10.75714]
[1743928165777,4.43809072,1783.8,1783.5,3.92476]
[1743928165778,0.51388072,1783.8,1783.5,3.92476]
[1743928165960,3.92399,1783.9,1783.5,3.92476]
[1743928166162,3.92369,1784.1,1783.4,6.8321]
[1743928166361,0.7929,1784.2,1783.8,3.92403]
[1743928166670,3.92241,1784.7,1784.2,3.92324]
[1743928166867,4.33555279,1784.8,1784.3,6.068]
[1743928166868,4.314791,1784.6,1784.3,6.068]
[1743928167183,0.392241,1784.6,1784.3,6.068]
[1743928167360,7.84453,1784.7,1784.3,6.068]
[1743928167361,3.92222,1784.7,1784.3,9.99095]
[1743928167859,3.97185,1784.9,1784.4,3.92282]
[1743928168066,3.97185,1784.9,1784.5,0.7971]
[1743928168400,3.97185,1784.9,1784.6,6.062]
[1743928168401,0.05,1784.9,1784.6,6.062]
[1743928168580,3.92216,1784.8,1784.6,6.062]
[1743928168785,3.92222,1784.7,1784.6,6.062]
[1743928168986,3.92222,1784.7,1784.3,0.7971]
[1743928169181,3.92283,1784.5,1784.4,6.062]
[1743928169889,7.84516,1784.6,1784.4,6.062]
[1743928170060,3.92258,1784.6,1784.3,0.7971]
[1743928170257,7.84455,1784.7,1784.5,6.056]
[1743928170859,3.92244,1784.6,1784.5,6.056]
[1743928171262,3.92223,1784.7,1784.5,6.056]
[1743928171263,7.84466,1784.7,1784.5,6.056]
[1743928171467,3.92223,1784.7,1784.5,6.056]
[1743928172161,3.92288,1784.4,1784.3,6.048]
[1743928172571,3.92267,1784.5,1784.3,6.048]
[1743928172868,7.84454,1784.7,1784.3,6.048]
[1743928173063,3.92201,1784.8,1784.3,9.97094]
[1743928173256,3.97179,1784.9,1784.5,0.8167]
[1743928173456,3.97179,1784.9,1784.5,4.73927]
[1743928173788,0.05,1784.9,1784.6,3.92232]
[1743928174087,0.05,1784.9,1784.7,6.05]
[1743928174290,0.05,1784.9,1784.7,7.047232]
[1743928174456,0.05,1784.9,1784.7,6.05]
[1743928175791,3.922,1784.8,1784.5,0.8167]
[1743928175964,3.922,1784.8,1784.6,6.047]
[1743928176170,3.922,1784.8,1784.5,0.8167]
[1743928176391,3.922,1784.8,1784.6,6.052]
[1743928176690,1.592599,1784.8,1784.2,3.92328]
[1743928176858,3.92259,1784.6,1784.3,6.053]
[1743928177280,3.92201,1784.8,1784.4,4.73957]
[1743928177471,3.92201,1784.8,1784.4,10.78857]
[1743928178064,3.92223,1784.7,1784.4,6.8657]
[1743928178395,3.92201,1784.8,1784.4,10.78856]
[1743928178564,3.97179,1784.9,1784.5,5.001416]
[1743928178765,5.77707913,1784.9,1784.6,3.92243]
[1743928179000,5.77707913,1784.9,1784.7,0.8167]
[1743928179289,5.77707913,1784.9,1784.8,9.965]
[1743928179490,5.77707913,1784.9,1784.8,6.043]
[1743928180088,9.69885913,1784.9,1784.8,6.043]
[1743928180496,5.77707913,1784.9,1784.8,6.043]
[1743928180797,9.69885913,1784.9,1784.8,6.043]
[1743928181566,5.77707913,1784.9,1784.8,6.043]
[1743928181765,9.69885913,1784.9,1784.8,6.043]
[1743928181967,0.05,1784.9,1784.8,6.041]
[1743928182281,0.05,1784.9,1784.8,6.72677]
[1743928182602,0.05,1784.9,1784.8,10.64877]
[1743928183215,0.05,1784.9,1784.8,6.72677]
[1743928184983,0.05,1784.9,1784.8,0.68577]
[1743928185311,0.05,1784.9,1784.8,6.022]
[1743928188717,0.05,1784.9,1784.8,5.995]
[1743928188879,0.05,1784.9,1784.8,9.917]
[1743928189074,0.05,1784.9,1784.8,9.97302127]
[1743928189574,0.05,1784.9,1784.8,10.467]
[1743928189886,0.05,1784.9,1784.8,7.515576]
[1743928190585,0.05,1784.9,1784.8,11.49359758]
[1743928190918,0.05,1784.9,1784.8,11.437576]
[1743928191104,0.05,1784.9,1784.8,5.992576]
[1743928191286,0.05,1784.9,1784.8,11.974576]
[1743928192610,0.05,1784.9,1784.8,12.800576]
[1743928193606,0.05,1784.9,1784.8,17.58893922]
[1743928193824,0.05,1784.9,1784.8,23.74893922]
[1743928199627,0.05,1784.9,1784.8,12.428576]
[1743928199804,0.05,1784.9,1784.8,18.356576]
[1743928200503,0.05,1784.9,1784.8,12.428576]
[1743928200701,0.05,1784.9,1784.8,18.359576]
[1743928200898,0.05,1784.9,1784.8,18.909576]
[1743928201488,0.05,1784.9,1784.8,12.199576]
[1743928202255,0.05,1784.9,1784.8,12.749576]
[1743928203360,0.05,1784.9,1784.8,37.949576]
[1743928204670,0.05,1784.9,1784.8,32.018576]
[1743928204877,0.05,1784.9,1784.8,37.927576]
[1743928205079,1e-05,1784.9,1784.8,44.087576]
[1743928205245,1e-05,1784.9,1784.8,44.19002845]
[1743928206007,1e-05,1784.9,1784.8,48.99615111]
[1743928207358,0.55,1785.6,1785.5,3.92047]
[1743928207554,0.55,1785.6,1785.5,11.584417]
[1743928208274,0.55,1785.6,1785.5,25.590047]
[1743928208481,0.55,1785.6,1785.5,31.488047]
[1743928208778,0.5,1785.6,1785.5,31.488047]
[1743928209374,0.5,1785.6,1785.5,35.408517]
[1743928210161,0.47196,1785.6,1785.5,35.408517]
[1743928210482,0.47196,1785.6,1785.5,35.958517]
[1743928211182,0.47196,1785.6,1785.5,32.038047]
[1743928212368,0.47196,1785.6,1785.5,35.958517]
[1743928214463,0.47196,1785.6,1785.5,36.779217]
[1743928215838,0.47196,1785.6,1785.5,35.958517]
[1743928216440,0.47196,1785.6,1785.5,32.038047]
[1743928216638,0.47196,1785.6,1785.5,35.958517]
[1743928217742,0.47196,1785.6,1785.5,35.922517]
[1743928218269,6.19903913,1785.6,1785.5,35.922517]
[1743928219175,6.19903913,1785.6,1785.5,32.002047]
[1743928219374,6.19903913,1785.6,1785.5,31.993047]
[1743928219877,6.99343913,1785.6,1785.5,25.198]
[1743928220174,10.91368913,1785.6,1785.5,31.047]
[1743928222887,10.91368913,1785.6,1785.5,31.036]
[1743928223260,11.33547148,1785.6,1785.5,31.036]
[1743928224394,7.41522148,1785.6,1785.5,31.036]
[1743928224701,11.33547148,1785.6,1785.5,31.036]
[1743928224848,6.19903913,1785.6,1785.5,32.28424436]
[1743928225054,6.19903913,1785.6,1785.5,36.20471436]
[1743928225356,6.19903913,1785.6,1785.5,36.97641436]
[1743928225759,0.47196,1785.6,1785.5,36.97641436]
[1743928225963,0.47196,1785.6,1785.5,41.86334874]
[1743928226453,0.05,1785.9,1785.8,3.91981]
[1743928226653,0.05,1785.9,1785.8,4.311791]
[1743928227105,0.05,1785.9,1785.8,0.391981]
[1743928227388,3.96968,1785.9,1785.8,5.832]
[1743928227852,4.76578,1785.9,1785.6,0.55]
[1743928228064,4.76578,1785.9,1785.7,5.831]
[1743928228253,0.8461,1785.9,1785.7,5.831]
[1743928228869,4.76569,1785.9,1785.7,5.831]
[1743928229897,0.8461,1785.9,1785.7,5.831]
[1743928230563,4.76569,1785.9,1785.8,5.819]
[1743928231494,0.05,1785.9,1785.8,5.819]
[1743928234300,0.05,1785.9,1785.8,9.73881]
[1743928234461,0.05,1785.9,1785.8,11.104677]
[1743928234663,0.05,1785.9,1785.8,9.63881]
[1743928234973,0.05,1785.9,1785.8,10.18881]
[1743928235374,0.05,1785.9,1785.8,6.269]
[1743928235997,0.05,1785.9,1785.8,10.18881]
[1743928237105,0.05,1785.9,1785.8,35.37881]
[1743928237695,0.05,1785.9,1785.8,36.18541]
[1743928238764,0.05,1785.9,1785.8,31.459]
[1743928239164,0.05,1785.9,1785.8,29.65981]
[1743928239499,0.05,1785.9,1785.8,31.519]
[1743928240214,0.05,1785.9,1785.8,25.74]
[1743928240507,0.05,1785.9,1785.8,31.514]
[1743928243192,0.05,1785.9,1785.8,30.964]
[1743928243389,3.96959,1785.9,1785.8,30.964]
[1743928243615,3.96959,1785.9,1785.8,30.948]
[1743928243798,6.96959,1785.9,1785.8,30.948]
[1743928245097,7.78899,1785.9,1785.8,25.19]
[1743928245297,7.78899,1785.9,1785.8,30.939]
[1743928246297,7.78899,1785.9,1785.8,25.19]
[1743928246497,7.78899,1785.9,1785.8,30.943]
[1743928249026,3.05,1785.9,1785.8,30.943]
[1743928249991,3.05,1785.9,1785.8,25.19]
[1743928250198,3.05,1785.9,1785.8,30.924]
[1743928250399,6.96959,1785.9,1785.8,30.924]
[1743928251099,6.96959,1785.9,1785.8,30.926]
[1743928251314,6.96959,1785.9,1785.8,5.736]
[1743928251843,3.05,1785.9,1785.8,5.736]
[1743928252039,3.05,1785.9,1785.8,6.8596]
[1743928252249,0.05,1785.9,1785.8,6.8596]
[1743928252408,0.05,1785.9,1785.8,10.77941]
[1743928253293,0.05,1785.9,1785.8,11.54791]
[1743928258226,0.05,1785.9,1785.8,20.81030508]
[1743928258227,1e-05,1785.9,1785.8,20.81030508]
[1743928259722,5.76984347,1785.9,1785.8,17.81030508]
[1743928260122,0.42913517,1786.6,1786.2,3.91874]
[1743928260451,4.34728517,1786.6,1786.3,6.272]
[1743928260657,3.91837,1786.5,1786.3,0.55]
[1743928260840,3.91837,1786.5,1786.4,5.721]
[1743928261613,4.34728517,1786.6,1786.4,5.721]
[1743928262111,4.34731517,1786.6,1786.4,5.721]
[1743928262318,8.26553517,1786.6,1786.4,5.721]
[1743928262729,4.34731517,1786.6,1786.4,5.721]
[1743928262929,0.42913517,1786.6,1786.4,5.721]
[1743928263120,4.34720517,1786.6,1786.4,5.721]
[1743928263749,4.34720517,1786.6,1786.3,25.735]
[1743928263955,4.34720517,1786.6,1786.5,5.721]
[1743928264858,0.42913517,1786.6,1786.5,5.721]
[1743928265149,0.42913517,1786.6,1786.5,6.271]
[1743928265323,0.42913517,1786.6,1786.5,7.289941]
[1743928268257,12.1280914,1786.9,1786.6,1.6708201]
[1743928268419,8.2105314,1786.9,1786.6,1.6708201]
[1743928269125,3.9178,1786.8,1786.5,5.721]
[1743928269330,3.91787,1786.7,1786.3,25.9759]
[1743928269545,4.70039,1786.6,1786.4,5.698]
[1743928269751,3.91827,1786.5,1786.4,5.698]
[1743928270060,4.70039,1786.6,1786.4,5.698]
[1743928271471,0.7822,1786.6,1786.4,5.698]
[1743928271768,6.91785,1786.7,1786.5,0.55]
[1743928271974,3.91805,1786.6,1786.5,0.55]
[1743928272767,6.91849,1786.4,1786.3,25.185]
[1743928272964,7.70069,1786.4,1786.3,25.185]
[1743928274358,8.13021003,1786.4,1786.3,25.185]
[1743928275271,9.33507003,1786.4,1786.3,25.185]
[1743928275646,8.13021003,1786.4,1786.3,25.185]
[1743928277468,7.34801003,1786.4,1786.3,25.185]
[1743928277637,4.34801003,1786.4,1786.3,25.185]
[1743928277838,0.42952003,1786.4,1786.3,25.185]
[1743928278149,3.91839,1786.5,1786.3,25.185]
[1743928278885,3.91849,1786.4,1786.3,25.185]
[1743928282287,0.41806609,1786.4,1786.3,25.185]
[1743928282783,7.83683,1786.5,1786.3,25.185]
[1743928283483,3.0,1786.4,1786.3,25.185]
[1743928283644,6.91849,1786.4,1786.3,25.185]
[1743928286206,7.33533859,1786.4,1786.3,25.185]
[1743928290209,8.09763859,1786.4,1786.3,25.185]
[1743928290411,9.29924145,1786.4,1786.3,25.185]
[1743928293019,8.09763859,1786.4,1786.3,25.185]
[1743928293174,7.33533859,1786.4,1786.3,25.185]
[1743928297573,3.91815,1786.6,1786.3,26.5249]
[1743928297773,9.8488054,1786.7,1786.4,0.55]
[1743928297973,3.0,1786.6,1786.5,5.65]
[1743928298173,9.8488054,1786.7,1786.5,5.65]
[1743928299275,3.91785,1786.7,1786.5,5.65]
[1743928299475,3.0,1786.7,1786.5,5.65]
[1743928299870,7.8354,1786.8,1786.5,5.65]
[1743928300076,3.91802,1786.7,1786.5,5.65]
[1743928300278,3.91805,1786.6,1786.5,6.2]
[1743928301315,3.91787,1786.7,1786.5,6.82]
[1743928301918,3.91763,1786.8,1786.6,0.55]
[1743928302912,3.91763,1786.8,1786.6,1.3134]
[1743928303395,0.4698314,1786.9,1786.6,1.3134]
[1743928303797,3.9178,1786.8,1786.6,0.55]
[1743928304391,3.9178,1786.8,1786.6,1.232]
[1743928306492,3.91779,1786.8,1786.6,1.232]
[1743928306809,3.91807,1786.6,1786.5,0.55]
[1743928306981,3.91807,1786.6,1786.5,6.166]
[1743928307182,3.91805,1786.6,1786.5,0.55]
[1743928307377,3.91805,1786.6,1786.5,5.617]
[1743928307882,3.91805,1786.6,1786.4,0.55]
[1743928308082,3.91805,1786.6,1786.5,5.613]
[1743928310315,3.91805,1786.6,1786.5,6.1743]
[1743928310534,3.91783,1786.7,1786.5,6.1743]
[1743928311183,0.05,1786.9,1786.6,5.35310232]
[1743928311389,0.05,1786.9,1786.6,5.29713]
[1743928311591,0.05,1786.9,1786.6,2.918169]
[1743928312129,0.05,1786.9,1786.6,6.836189]
[1743928313403,3.96747,1786.9,1786.6,2.918169]
[1743928314334,0.05,1786.9,1786.6,2.918169]
[1743928314848,0.05,1786.9,1786.8,0.55]
[1743928315163,0.05,1786.9,1786.8,4.914373]
[1743928315625,0.05,1786.9,1786.8,1.825963]
[1743928316206,0.05,1786.9,1786.8,0.996763]
[1743928316415,0.05,1786.9,1786.7,0.55]
[1743928316617,0.05,1786.9,1786.7,25.728]
[1743928317229,0.05,1786.9,1786.7,29.64583]
[1743928317436,0.05,1786.9,1786.7,33.56357]
[1743928317605,0.05,1786.9,1786.7,29.64574]
[1743928317805,0.05,1786.9,1786.8,1.22985136]
[1743928321969,0.05,1786.9,1786.8,5.14746136]
[1743928322374,0.05,1786.9,1786.8,5.75341872]
[1743928322588,0.05,1786.9,1786.8,6.52826136]
[1743928322746,0.05,1786.9,1786.8,6.58421606]
[1743928323088,0.05,1786.9,1786.8,6.52826136]
[1743928326162,0.05,1786.9,1786.8,6.82585136]
[1743928326540,0.05,1786.9,1786.8,7.37585136]
[1743928330789,3.96739,1786.9,1786.7,25.178]
[1743928330993,7.68971,1786.8,1786.7,25.178]
[1743928331194,7.68971,1786.8,1786.7,30.76]
[1743928332345,3.7721,1786.8,1786.7,30.76]
[1743928332550,3.0,1786.8,1786.7,30.76]
[1743928334127,6.91761,1786.8,1786.7,30.76]
[1743928335011,3.0,1786.8,1786.7,30.76]
[1743928335185,4.38589139,1786.9,1786.7,30.76]
[1743928336688,8.30344139,1786.9,1786.7,30.76]
[1743928337089,3.91761,1786.8,1786.7,30.76]
[1743928337724,4.38589139,1786.9,1786.7,30.76]
[1743928338387,3.91761,1786.8,1786.7,30.76]
[1743928342644,4.68971,1786.8,1786.7,30.76]
[1743928342941,7.68971,1786.8,1786.7,25.178]
[1743928343163,8.59727014,1786.8,1786.7,30.721]
[1743928345457,8.59727014,1786.8,1786.7,5.543]
[1743928348166,3.91845,1786.5,1786.3,25.177]
[1743928348349,3.91845,1786.5,1786.4,5.524]
[1743928348849,3.91849,1786.4,1786.3,25.177]
[1743928349058,3.91849,1786.4,1786.3,30.704]
[1743928349580,4.34286386,1786.4,1786.3,30.704]
[1743928350076,4.34286386,1786.4,1786.3,30.7]
[1743928350277,4.34286386,1786.4,1786.3,30.699]
[1743928352087,4.34286386,1786.4,1786.3,25.177]
[1743928352242,9.01389525,1786.4,1786.3,30.697]
[1743928352811,9.01389525,1786.4,1786.3,25.177]
[1743928355074,8.10526386,1786.4,1786.3,25.177]
[1743928355280,3.42437386,1786.4,1786.3,25.177]
[1743928355587,3.42437386,1786.4,1786.3,25.727]
[1743928355765,3.0,1786.4,1786.3,25.727]
[1743928356300,6.91849,1786.4,1786.3,25.727]
[1743928356810,3.42608006,1786.4,1786.3,25.727]
[1743928357012,7.34457006,1786.4,1786.3,25.727]
[1743928358111,3.91807,1786.6,1786.3,26.5393]
[1743928358267,3.91807,1786.6,1786.3,30.45801]
[1743928358466,6.91807,1786.6,1786.5,0.55]
[1743928358707,3.91827,1786.5,1786.3,25.9893]
[1743928358908,3.91827,1786.5,1786.3,25.177]
[1743928359119,7.83675,1786.5,1786.3,25.177]
[1743928359327,3.91827,1786.5,1786.3,25.177]
[1743928360029,7.83676,1786.5,1786.3,25.177]
[1743928360524,3.91849,1786.4,1786.3,25.177]
[1743928360715,6.91849,1786.4,1786.3,25.177]
[1743928363103,6.91849,1786.4,1786.3,30.681]
[1743928364033,6.91849,1786.4,1786.3,25.177]
[1743928364192,6.91849,1786.4,1786.3,30.677]
[1743928364592,7.34755677,1786.4,1786.3,30.677]
[1743928365600,0.42906677,1786.4,1786.3,30.677]
[1743928365806,3.91827,1786.5,1786.3,30.677]
[1743928366191,7.8367,1786.5,1786.3,30.677]
[1743928366827,3.91849,1786.4,1786.3,25.177]
[1743928367038,3.91849,1786.4,1786.3,30.678]
[1743928369038,4.3345433,1786.4,1786.3,30.678]
[1743928369424,0.4160533,1786.4,1786.3,30.678]
[1743928369623,8.5948,1786.5,1786.3,30.678]
[1743928369838,4.67637,1786.5,1786.3,30.678]
[1743928370040,6.91801,1786.7,1786.4,0.7791]
[1743928370436,10.83601,1786.7,1786.4,0.7791]
[1743928370814,6.918,1786.7,1786.4,0.7791]
[1743928371415,10.83601,1786.7,1786.4,0.7791]
[1743928372060,6.918,1786.7,1786.4,0.7791]
[1743928372559,6.918,1786.7,1786.4,0.83507498]
[1743928372725,1.23270139,1786.9,1786.5,0.55]
[1743928372928,0.46850139,1786.9,1786.7,0.7791]
[1743928373156,0.46850139,1786.9,1786.8,5.487]
[1743928373338,4.38589139,1786.9,1786.8,5.487]
[1743928374110,3.91784,1786.7,1786.5,1.3291]
[1743928374317,3.91784,1786.7,1786.6,5.496]
[1743928374550,3.91784,1786.7,1786.6,6.17851]
[1743928376268,6.91761,1786.8,1786.6,6.17851]
[1743928376763,3.0,1786.8,1786.6,6.17851]
[1743928377437,3.05,1786.9,1786.8,0.7791]
[1743928377635,0.05,1786.9,1786.8,0.7791]
[1743928377866,3.96739,1786.9,1786.7,1.3291]
[1743928378018,3.96739,1786.9,1786.7,2.471655]
[1743928381165,4.38419192,1786.9,1786.7,2.471655]
[1743928381471,3.96739,1786.9,1786.7,2.471655]
[1743928382965,7.88496,1786.9,1786.7,2.471655]